[Event "44th Chess Olympiad Open 2022"]
[Site "Chennai"]
[Date "2022.08.01"]
[Round "4.47"]
[White "Giron, Jorge Ernesto"]
[Black "Maung, Maung Kyaw Zaw Hein"]
[Result "1/2-1/2"]
[WhiteElo "2288"]
[BlackElo "2121"]
[Annotator "NA RC"]
[PlyCount "83"]
[EventDate "2022.??.??"]
[TimeControl "60"]

1. e4 {[%emt 0:00:28]} c5 {[%emt 0:02:06]} 2. Nf3 {[%emt 0:00:08]} d6 {[%emt 0:
00:00]} 3. d4 {[%emt 0:00:19]} cxd4 {[%emt 0:00:05]} 4. Nxd4 {[%emt 0:00:07]}
Nf6 {[%emt 0:00:02]} 5. Nc3 {[%emt 0:00:11]} g6 {[%emt 0:00:13]} 6. Be3 {
[%emt 0:00:12]} Bg7 {[%emt 0:00:04]} 7. Be2 {[%emt 0:00:12]} O-O {[%emt 0:00:
00]} 8. Qd2 {[%emt 0:00:14]} Nc6 {[%emt 0:01:09]} 9. O-O-O {[%emt 0:00:08]} Ng4
{[%emt 0:08:01]} 10. Bxg4 {[%emt 0:02:53]} Bxg4 {[%emt 0:00:06]} 11. f3 {
[%emt 0:00:04]} Be6 {[%emt 0:03:33]} 12. Nxe6 {[%emt 0:01:06]} fxe6 {[%emt 0:
00:00]} 13. Bh6 {[%emt 0:00:24]} Rc8 {[%emt 0:05:29]} 14. Bxg7 {[%emt 0:00:48]}
Kxg7 {[%emt 0:00:09]} 15. Ne2 {[%emt 0:01:50]} Qa5 {[%emt 0:13:01]} 16. Qxa5 {
[%emt 0:01:51]} Nxa5 {[%emt 0:00:04]} 17. b3 {[%emt 0:00:14]} Nc6 {[%emt 0:00:
00]} 18. Kb2 {[%emt 0:01:27]} e5 {[%emt 0:03:49]} 19. Rhf1 {[%emt 0:02:57]} Rf7
{[%emt 0:03:33]} 20. a3 {[%emt 0:25:24]} Rf6 {[%emt 0:07:28]} 21. Rfe1 {
[%emt 0:01:46]} h5 {[%emt 0:03:00]} 22. Rd2 {[%emt 0:00:26]} h4 {[%emt 0:01:58]
} 23. h3 {[%emt 0:00:04]} Kh6 {[%emt 0:00:40]} 24. Nc3 {[%emt 0:00:16]} Nd4 {
[%emt 0:01:10]} 25. Nd5 {[%emt 0:00:09]} Rf7 {[%emt 0:00:10]} 26. f4 {[%emt 0:
00:00]} Nc6 {[%emt 0:03:00]} 27. f5 {[%emt 0:00:28]} gxf5 {[%emt 0:01:59]} 28.
exf5 {[%emt 0:00:12]} Rxf5 {[%emt 0:01:20]} 29. Re4 {[%emt 0:00:10]} Kh5 {
[%emt 0:01:35]} 30. b4 {[%emt 0:00:40]} Rf7 {[%emt 0:04:41]} 31. c4 {[%emt 0:
00:00]} Rcf8 {[%emt 0:08:52]} 32. b5 {[%emt 0:04:35]} Rf2 {[%emt 0:09:59]} 33.
Kc3 {[%emt 0:05:19]} Rxd2 {[%emt 0:00:00]} 34. Kxd2 {[%emt 0:00:05]} Nd4 {
[%emt 0:00:00]} 35. Nxe7 {[%emt 0:00:11]} Rf2+ {[%emt 0:00:00]} 36. Kd1 {
[%emt 0:15:56]} Rxg2 {[%emt 0:02:05]} 37. Nc8 {[%emt 0:00:06]} Nf5 {[%emt 0:00:
00]} 38. c5 {[%emt 0:00:36]} Rg1+ {[%emt 0:01:55]} 39. Kc2 {[%emt 0:00:15]}
Rg2+ {[%emt 0:00:47]} 40. Kd1 {[%emt 0:04:19]} Rg1+ {[%emt 0:00:12]} 41. Kc2 {
[%emt 0:34:15]} Rg2+ {[%emt 0:30:18]} 42. Kd1 {[%emt 0:00:37]} 1/2-1/2

[Event "44th Chess Olympiad Open 2022"]
[Site "Chennai"]
[Date "2022.08.01"]
[Round "4.47"]
[White "Arias, Lemnys A."]
[Black "Myat Thiri Aung Kyaw"]
[Result "1-0"]
[WhiteElo "2258"]
[BlackElo "2120"]
[Annotator "TA"]
[PlyCount "164"]
[EventDate "2022.??.??"]
[TimeControl "60"]

{[%evp 9,164,29,47,47,35,34,51,45,81,41,61,59,65,60,76,65,93,54,86,40,80,58,99,
74,76,76,103,96,102,96,112,77,122,114,131,85,130,111,144,120,156,154,156,142,
143,149,154,154,158,139,139,97,122,90,134,88,89,77,77,77,107,84,107,107,120,
121,122,99,105,10,43,43,51,51,43,51,72,0,0,-5,0,0,0,-3,0,-27,-28,-70,0,-47,-47,
-38,-50,-37,-14,-16,-24,-24,-27,-49,0,-68,-60,-167,-179,-177,-167,-198,-92,
-208,-12,-12,-12,-12,-17,-17,-23,-16,66,59,498,476,570,330,313,322,302,302,350,
327,333,333,313,311,920,746,29962,29955,29977,29975,29974,29974,29973,29975,
29975,29976,29976,29977,29977,29979,29983,29973,29982,29983,29983,29984,29982]
} 1. d4 {[%emt 0:00:20]} Nf6 {[%emt 0:01:39]} 2. c4 {[%emt 0:00:40]} e6 {
[%emt 0:00:52]} 3. Nc3 {[%emt 0:00:06]} Bb4 {[%emt 0:00:09]} 4. Qc2 {[%emt 0:
00:00]} Nc6 {[%emt 0:02:00]} 5. Nf3 {[%emt 0:00:20]} Qe7 {[%emt 0:01:20]} 6. a3
{[%emt 0:01:09] E33: Nimzo-Indian: Classical: 4...Nc6.} Bxc3+ {[%emt 0:00:09]}
7. Qxc3 {[%emt 0:00:05]} h6 {[%emt 0:01:06] [#]} 8. b4 $146 {[%emt 0:01:46]
White is slightly better.} ({Predecessor:} 8. g3 O-O 9. Bg2 d6 10. O-O a5 11.
b3 e5 12. dxe5 dxe5 13. Bb2 Re8 14. h3 {1-0 (37) Kahn,E (2307)-Kaufman,R (2274)
Budapest 2006}) 8... a6 {[%emt 0:01:34]} 9. g3 {[%emt 0:01:09]} d5 {[%emt 0:00:
00]} 10. Bb2 {[%emt 0:01:53]} O-O {[%emt 0:07:32]} 11. Bg2 {[%emt 0:00:33]} Bd7
{[%emt 0:08:27]} 12. O-O {[%emt 0:01:22]} Rfd8 {[%emt 0:08:05]} 13. Rfd1 {
[%emt 0:03:54]} Be8 {[%emt 0:00:36]} 14. Rac1 {[%emt 0:00:07]} (14. Nd2 $16)
14... Ne4 {[%emt 0:02:01]} 15. Qc2 {[%emt 0:00:11]} Rac8 {[%emt 0:03:31]} 16.
Nd2 {[%emt 0:04:35]} Nxd2 {[%emt 0:04:29]} 17. Rxd2 {[%emt 0:01:08]} Qf6 {
[%emt 0:05:12]} 18. e4 {[%emt 0:01:11]} Ne7 {[%emt 0:01:05]} 19. Re1 {[%emt 0:
00:00]} c6 {[%emt 0:10:14]} 20. Rde2 {[%emt 0:04:35]} b5 {[%emt 0:05:24]} 21.
c5 {[%emt 0:02:02]} Qg6 {[%emt 0:04:23]} 22. f3 {[%emt 0:02:30]} (22. e5 $142)
22... Kh8 {[%emt 0:06:05]} 23. Qc1 {[%emt 0:02:23]} Ng8 {[%emt 0:02:48]} 24.
Bc3 {[%emt 0:00:51]} Nf6 {[%emt 0:00:45]} 25. e5 {[%emt 0:02:22]} Ng8 {[%emt 0:
00:00]} 26. Re3 {[%emt 0:00:26]} Bd7 {[%emt 0:00:18]} 27. Bf1 {[%emt 0:00:15]}
Rf8 {[%emt 0:01:45]} 28. Bd3 {[%emt 0:00:14]} f5 {[%emt 0:00:05]} 29. exf6 {
[%emt 0:00:38]} Qxf6 {[%emt 0:00:23]} 30. Qd2 {[%emt 0:00:46]} Ne7 {[%emt 0:00:
00]} 31. Bc2 {[%emt 0:00:13]} Rf7 {[%emt 0:04:04]} 32. Qd3 {[%emt 0:04:06]
White is more active.} (32. f4 $142) 32... g5 $16 {[%emt 0:01:28]} 33. Rf1 {
[%emt 0:00:10]} Nf5 {[%emt 0:01:09]} 34. Re5 {[%emt 0:00:23]} Rg8 {[%emt 0:00:
00]} 35. Bd2 {[%emt 0:00:13]} Rfg7 {[%emt 0:03:39]} 36. Kf2 {[%emt 0:01:47]}
Be8 {[%emt 0:00:53]} 37. Rfe1 {[%emt 0:00:34]} Bf7 {[%emt 0:01:54]} 38. R1e2 {
[%emt 0:01:49]} Re8 {[%emt 0:00:19]} 39. Bc3 {[%emt 0:01:35]} (39. Kg1 $16)
39... Bg6 {[%emt 0:00:27][%cal Yf5g3] aiming for ...Nxg3!} 40. Qd2 {[%emt 0:00:
00]} Rf7 {[%emt 0:02:15][%cal Yf5h4] Strongly threatening ...Nh4!} 41. Ke1 {
[%emt 0:30:16]} Ng7 {[%emt 0:31:19][%cal Yf6f3]} 42. Rf2 {[%emt 0:02:50]} Ref8
{[%emt 0:00:00]} 43. f4 {[%emt 0:00:00]} (43. g4 $16) 43... Kh7 $11 {[%emt 0:
00:00]} 44. Bb2 {[%emt 0:00:00]} Bxc2 {[%emt 0:00:00]} 45. Qxc2+ {[%emt 0:00:
00]} Qg6 {[%emt 0:00:00]} 46. Bc1 {[%emt 0:00:00]} Rf5 {[%emt 0:00:00]} 47.
Ree2 {[%emt 0:00:00]} (47. g4 $5 {[%cal Rg4f5]} R5f7 48. Qxg6+ Kxg6 49. Rf3 $11
) 47... g4 {[%emt 0:00:00]} 48. Qd3 {[%emt 0:00:00]} Nh5 {[%emt 0:03:05]} (
48... Rh5 $15 49. Kd2 Rh3) 49. a4 {[%emt 0:00:00]} (49. Re3 $11) 49... Nf6 $1
$15 {[%emt 0:02:27]} 50. Rg2 {[%emt 0:00:00]} Ne4 {[%emt 0:00:52]} 51. Ra2 {
[%emt 0:00:00]} R5f7 {[%emt 0:01:32]} 52. axb5 {[%emt 0:00:00]} axb5 {[%emt 0:
00:00]} 53. Ra6 {[%emt 0:00:00]} Rc8 {[%emt 0:00:21]} 54. Rga2 {[%emt 0:00:00]}
Kg7 {[%emt 0:00:36]} (54... Qf5 $15) 55. Ra7 {[%emt 0:00:00]} ({White should
try} 55. Qe3 $11) 55... h5 {[%emt 0:01:02][%cal Yh5h4]} 56. Qe3 {[%emt 0:01:32]
[#]} (56. f5 $15 exf5 57. Bf4) 56... Qf5 $1 $19 {[%emt 0:00:35]} 57. Rxf7+ {
[%emt 0:00:17]} Kxf7 {[%emt 0:00:20]} ({Worse is} 57... Qxf7 58. f5 $11) 58.
Qa3 {[%emt 0:01:13]} Nf6 {[%emt 0:00:38]} (58... Rh8 $19 {White must now
prevent ...h4.} 59. Kf1 Kf6) 59. Qe3 {[%emt 0:00:43]} (59. Qa7+ $17 Kg6 60. Re2
) 59... Rc7 $2 {[%emt 0:00:11]} (59... Rh8 $19 {...Ne4 is the strong threat.}
60. Qe5 h4 61. Qxf5 exf5 62. Ra7+ Ke6) 60. Qe5 $11 {[%emt 0:01:21]} Re7 {
[%emt 0:01:27] And now ...Qb1 would win.} 61. Qxf5 {[%emt 0:04:45]} exf5+ {
[%emt 0:00:01] Endgame KRB-KRN} 62. Kf1 {[%emt 0:00:16]} Re4 {[%emt 0:00:24]}
63. Ra7+ {[%emt 0:00:25]} Ke6 {[%emt 0:01:17]} ({Black should play} 63... Kg6
$11 64. Rc7 Rxd4) 64. Rc7 $14 {[%emt 0:00:20]} Rxd4 $2 {[%emt 0:00:11]} ({
Better is} 64... Ne8 $14 65. Rxc6+ Kd7) 65. Rxc6+ $18 {[%emt 0:00:06]} Ke7 {
[%emt 0:00:19] [#] Threatens to win with ...Rd1+.} 66. Rxf6 $1 {[%emt 0:00:21]
KRB-KR} Rd1+ {[%emt 0:00:07]} (66... Kxf6 67. Bb2 Kf7 68. Bxd4 Ke7 69. Ke2 Kd7
70. Be5 Kc6 71. Ke3) 67. Ke2 {[%emt 0:00:00]} Rxc1 {[%emt 0:00:04]} 68. Rxf5 {
[%emt 0:00:07] KR-KR} Rc2+ {[%emt 0:00:11]} 69. Ke3 {[%emt 0:00:55]} Rxh2 {
[%emt 0:01:00]} 70. Kd4 {[%emt 0:00:30]} ({Less strong is} 70. Rxd5 Rb2 $16)
70... Rd2+ {[%emt 0:00:36]} 71. Ke5 {[%emt 0:00:00]} Rd3 $2 {[%emt 0:01:13]} (
71... h4 72. gxh4 d4) 72. Rxh5 {[%emt 0:00:09] Threatening mate with Rh7+.} d4
{[%emt 0:00:31]} 73. Rh7+ {[%emt 0:00:07] White mates.} Kd8 {[%emt 0:00:18]}
74. c6 {[%emt 0:00:13]} Rxg3 {[%emt 0:00:12]} 75. Kd6 {[%emt 0:00:06][%cal
Rh7h8]} Rh3 {[%emt 0:00:10]} 76. Rg7 {[%emt 0:00:00][%cal Rg7g8]} Rh6+ {
[%emt 0:00:06]} 77. Kc5 {[%emt 0:00:09]} d3 {[%emt 0:00:00]} 78. Rd7+ {[%emt 0:
01:02]} Kc8 {[%emt 0:00:08]} 79. Rxd3 {[%emt 0:00:25]} Rf6 {[%emt 0:00:01]} 80.
Rd5 {[%emt 0:00:28]} Kc7 {[%emt 0:00:30]} 81. Rd7+ {[%emt 0:00:08]} Kc8 {
[%emt 0:00:00]} 82. Rg7 {[%emt 0:00:13]} Rxf4 {[%emt 0:00:00] A wild game.
Weighted Error Value: White=0.22 (precise) /Black=0.22 (precise)} 1-0

[Event "44th Chess Olympiad Open 2022"]
[Site "Chennai"]
[Date "2022.08.01"]
[Round "4.47"]
[White "Nay Lin Tun"]
[Black "Chavez, Ricardo Ernesto"]
[Result "1-0"]
[WhiteElo "2045"]
[BlackElo "2179"]
[Annotator "RC"]
[PlyCount "121"]
[EventDate "2022.??.??"]
[TimeControl "60"]

1. e4 {[%emt 0:00:10]} g6 {[%emt 0:01:00]} 2. d4 {[%emt 0:00:54]} Bg7 {[%emt 0:
00:00]} 3. Nf3 {[%emt 0:00:36]} d6 {[%emt 0:00:07]} 4. Be2 {[%emt 0:00:51]} Nf6
{[%emt 0:00:14]} 5. Nc3 {[%emt 0:00:45]} O-O {[%emt 0:00:09]} 6. O-O {[%emt 0:
00:00]} e6 {[%emt 0:00:26]} 7. Re1 {[%emt 0:03:09]} Nc6 {[%emt 0:01:43]} 8. h3
{[%emt 0:01:21]} Ne7 {[%emt 0:01:58]} 9. Bd3 {[%emt 0:05:30]} d5 {[%emt 0:00:
00]} 10. e5 {[%emt 0:01:53]} Nd7 {[%emt 0:00:07]} 11. Ne2 {[%emt 0:00:56]} c5 {
[%emt 0:02:01]} 12. c3 {[%emt 0:01:45]} Nc6 {[%emt 0:00:25]} 13. Bg5 {[%emt 0:
00:00]} Qb6 {[%emt 0:03:52]} 14. Qc1 {[%emt 0:03:40]} f6 {[%emt 0:12:48]} 15.
exf6 {[%emt 0:04:43]} Nxf6 {[%emt 0:00:11]} 16. Nf4 {[%emt 0:32:07]} cxd4 {
[%emt 0:08:26]} 17. Nxe6 {[%emt 0:03:13]} dxc3 {[%emt 0:02:46]} 18. bxc3 {
[%emt 0:01:36]} Bxe6 {[%emt 0:12:48]} 19. Rxe6 {[%emt 0:00:39]} Rae8 {[%emt 0:
00:00]} 20. Rxe8 {[%emt 0:05:25]} Rxe8 {[%emt 0:00:25]} 21. Rb1 {[%emt 0:00:59]
} Qc7 {[%emt 0:01:08]} 22. Qf4 {[%emt 0:11:58]} Qxf4 {[%emt 0:09:00]} 23. Bxf4
{[%emt 0:00:02]} Re7 {[%emt 0:02:10]} 24. c4 {[%emt 0:01:56]} d4 {[%emt 0:00:
00]} 25. c5 {[%emt 0:00:52]} Ne4 {[%emt 0:06:56]} 26. Re1 {[%emt 0:05:06]} Nc3
{[%emt 0:01:57]} 27. Bc4+ {[%emt 0:00:43]} Kh8 {[%emt 0:00:18]} 28. Rxe7 {
[%emt 0:00:57]} Nxe7 {[%emt 0:00:07]} 29. Ng5 {[%emt 0:00:29]} Bf6 {[%emt 0:00:
00]} 30. Nf7+ {[%emt 0:00:25]} Kg8 {[%emt 0:03:20]} 31. Nd8+ {[%emt 0:00:33]}
Ned5 {[%emt 0:00:48]} 32. Nxb7 {[%emt 0:00:21]} d3 {[%emt 0:08:10]} 33. Bd2 {
[%emt 0:01:25]} Kf8 {[%emt 0:01:44]} 34. Bxd3 {[%emt 0:00:25]} Nxa2 {[%emt 0:
00:00]} 35. Ba5 {[%emt 0:00:34]} Nab4 {[%emt 0:00:46]} 36. Bb5 {[%emt 0:00:26]}
Be5 {[%emt 0:02:13]} 37. Kf1 {[%emt 0:00:35]} Bc7 {[%emt 0:01:32]} 38. Bxc7 {
[%emt 0:00:31]} Nxc7 {[%emt 0:00:06]} 39. Bc4 {[%emt 0:00:13]} Nc6 {[%emt 0:00:
00]} 40. Ke2 {[%emt 0:00:52]} Ke7 {[%emt 0:00:46]} 41. Ke3 {[%emt 0:30:15]} Ne5
{[%emt 0:35:17]} 42. Bb3 {[%emt 0:00:00]} Nd7 {[%emt 0:00:00]} 43. f4 {[%emt 0:
00:00]} Nf6 {[%emt 0:00:00]} 44. g4 {[%emt 0:00:00]} Nfd5+ {[%emt 0:00:00]} 45.
Ke4 {[%emt 0:00:00]} Nf6+ {[%emt 0:00:00]} 46. Ke5 {[%emt 0:00:00]} Nd7+ {
[%emt 0:00:00]} 47. Kd4 {[%emt 0:00:00]} Nb5+ {[%emt 0:00:00]} 48. Kc4 {
[%emt 0:00:00]} Nc7 {[%emt 0:00:00]} 49. Kd4 {[%emt 0:00:18]} Nb5+ {[%emt 0:00:
00]} 50. Ke3 {[%emt 0:00:51]} Nc7 {[%emt 0:00:00]} 51. g5 {[%emt 0:01:44]} Ne6
{[%emt 0:00:00]} 52. c6 {[%emt 0:01:59]} Nb6 {[%emt 0:00:00]} 53. Ke4 {[%emt 0:
00:00]} Na8 {[%emt 0:00:00]} 54. Ke5 {[%emt 0:00:30]} Nac7 {[%emt 0:00:00]} 55.
h4 {[%emt 0:01:23]} Nf8 {[%emt 0:00:00]} 56. Nd6 {[%emt 0:00:21]} Na6 {[%emt 0:
00:00]} 57. Nc8+ {[%emt 0:00:40]} Kd8 {[%emt 0:00:15]} 58. Nxa7 {[%emt 0:00:15]
} Nc5 {[%emt 0:00:12]} 59. Bd5 {[%emt 0:00:44]} Kc7 {[%emt 0:01:30]} 60. Nb5+ {
[%emt 0:00:18]} Kc8 {[%emt 0:05:25]} 61. Kd6 {[%emt 0:00:09]} 1-0

[Event "44th Chess Olympiad Open 2022"]
[Site "Chennai"]
[Date "2022.08.01"]
[Round "4.47"]
[White "Zaw Ye Htut"]
[Black "Morales Carlos"]
[Result "0-1"]
[WhiteElo "1255"]
[BlackElo "2036"]
[Annotator "NA RC"]
[PlyCount "136"]
[EventDate "2022.??.??"]
[TimeControl "60"]

1. e4 {[%emt 0:00:03]} c6 {[%emt 0:01:28]} 2. d4 {[%emt 0:00:24]} d5 {[%emt 0:
00:00]} 3. exd5 {[%emt 0:00:47]} cxd5 {[%emt 0:00:05]} 4. Bd3 {[%emt 0:00:13]}
Nc6 {[%emt 0:00:11]} 5. c3 {[%emt 0:00:10]} Nf6 {[%emt 0:00:09]} 6. Nf3 {
[%emt 0:00:31]} Bg4 {[%emt 0:00:16]} 7. Bf4 {[%emt 0:01:06]} e6 {[%emt 0:00:06]
} 8. Nbd2 {[%emt 0:00:13]} Bd6 {[%emt 0:00:11]} 9. Bxd6 {[%emt 0:00:26]} Qxd6 {
[%emt 0:00:04]} 10. Qb3 {[%emt 0:02:26]} Rb8 {[%emt 0:00:40]} 11. O-O {[%emt 0:
00:00]} O-O {[%emt 0:00:05]} 12. Rfe1 {[%emt 0:00:55]} Bh5 {[%emt 0:03:30]} 13.
Ne5 {[%emt 0:02:29]} Bg6 {[%emt 0:00:11]} 14. Nxg6 {[%emt 0:00:22]} hxg6 {
[%emt 0:00:05]} 15. Nf3 {[%emt 0:00:11]} Qc7 {[%emt 0:00:42]} 16. Re2 {[%emt 0:
00:00]} b5 {[%emt 0:00:13]} 17. h3 {[%emt 0:02:14]} Rfc8 {[%emt 0:01:12]} 18.
Rc1 {[%emt 0:04:59]} Qf4 {[%emt 0:05:47]} 19. Rce1 {[%emt 0:02:38]} b4 {
[%emt 0:00:14]} 20. Qa4 {[%emt 0:00:48]} bxc3 {[%emt 0:07:24]} 21. bxc3 {
[%emt 0:00:52]} Qc7 {[%emt 0:03:05]} 22. Ng5 {[%emt 0:22:04]} Qa5 {[%emt 0:00:
00]} 23. Qxa5 {[%emt 0:08:45]} Nxa5 {[%emt 0:00:05]} 24. Rc2 {[%emt 0:00:24]}
Nc4 {[%emt 0:01:19]} 25. Rcc1 {[%emt 0:03:39]} Nd6 {[%emt 0:10:26]} 26. Re2 {
[%emt 0:05:37]} Rb6 {[%emt 0:03:54]} 27. Kf1 {[%emt 0:05:03]} Nd7 {[%emt 0:00:
00]} 28. f4 {[%emt 0:02:27]} Rbc6 {[%emt 0:00:35]} 29. Rec2 {[%emt 0:00:45]}
Nb6 {[%emt 0:00:11]} 30. Ke1 {[%emt 0:01:33]} Na4 {[%emt 0:03:53]} 31. Kd2 {
[%emt 0:00:37]} Rb6 {[%emt 0:00:21]} 32. c4 {[%emt 0:01:12]} dxc4 {[%emt 0:00:
00]} 33. Bxc4 {[%emt 0:00:33]} Rbc6 {[%emt 0:16:53]} 34. Bb3 {[%emt 0:02:04]}
Rxc2+ {[%emt 0:04:03]} 35. Rxc2 {[%emt 0:00:26]} Rxc2+ {[%emt 0:00:05]} 36.
Kxc2 {[%emt 0:00:27]} Nb6 {[%emt 0:00:07]} 37. Kc3 {[%emt 0:02:01]} Kf8 {
[%emt 0:01:14]} 38. Kb4 {[%emt 0:01:17]} Nf5 {[%emt 0:00:19]} 39. Kc5 {[%emt 0:
00:00]} Ke7 {[%emt 0:00:20]} 40. g4 {[%emt 0:00:34]} Nd7+ {[%emt 0:03:33]} 41.
Kc4 {[%emt 0:30:50]} Nb6+ {[%emt 0:36:39]} 42. Kd3 {[%emt 0:05:01]} Nd6 {
[%emt 0:00:52]} 43. h4 {[%emt 0:00:27]} a5 {[%emt 0:01:02]} 44. Ne4 {[%emt 0:
00:00]} a4 {[%emt 0:13:09]} 45. Bc2 {[%emt 0:03:08]} Nd5 {[%emt 0:00:11]} 46.
Nxd6 {[%emt 0:01:48]} Kxd6 {[%emt 0:00:09]} 47. Bxa4 {[%emt 0:00:27]} Nxf4+ {
[%emt 0:01:32]} 48. Kc4 {[%emt 0:03:38]} Nd5 {[%emt 0:01:10]} 49. Be8 {[%emt 0:
00:00]} f5 {[%emt 0:06:48]} 50. g5 {[%emt 0:00:00]} f4 {[%emt 0:00:00]} 51.
Bxg6 {[%emt 0:00:00]} f3 {[%emt 0:00:00]} 52. Bd3 {[%emt 0:00:00]} f2 {[%emt 0:
00:00]} 53. h5 {[%emt 0:00:00]} Nf4 {[%emt 0:00:00]} 54. Bf1 {[%emt 0:00:00]}
Nxh5 {[%emt 0:00:00]} 55. a4 {[%emt 0:00:00]} Ng3 {[%emt 0:00:00]} 56. Bd3 {
[%emt 0:00:00]} f1=Q {[%emt 0:00:00]} 57. Bxf1 {[%emt 0:00:00]} Nxf1 {[%emt 0:
00:00]} 58. Kd3 {[%emt 0:00:00]} Ng3 {[%emt 0:00:00]} 59. a5 {[%emt 0:00:00]}
Kc6 {[%emt 0:00:00]} 60. Ke3 {[%emt 0:00:00]} Nf5+ {[%emt 0:00:00]} 61. Ke4 {
[%emt 0:00:00]} Nd6+ {[%emt 0:00:00]} 62. Ke5 {[%emt 0:00:00]} Kd7 {[%emt 0:00:
00]} 63. a6 {[%emt 0:00:00]} Nc4+ {[%emt 0:00:00]} 64. Ke4 {[%emt 0:00:00]} Kd6
{[%emt 0:00:00]} 65. a7 {[%emt 0:00:00]} Nb6 {[%emt 0:00:00]} 66. g6 {[%emt 0:
00:00]} Na8 {[%emt 0:00:00]} 67. d5 {[%emt 0:00:00]} exd5+ {[%emt 0:00:00]} 68.
Kd4 {[%emt 0:00:00]} Nc7 {[%emt 0:00:00]} 0-1

[Event "44th Chess Olympiad Open 2022"]
[Site "Chennai"]
[Date "2022.08.01"]
[Round "4.48"]
[White "Gemy, Jose Daniel"]
[Black "Hasford, John Kojo"]
[Result "1-0"]
[WhiteElo "2373"]
[BlackElo "1976"]
[Annotator "TA"]
[PlyCount "87"]
[EventDate "2022.??.??"]
[TimeControl "60"]

{[%evp 16,87,62,63,94,60,52,10,87,0,-4,-6,0,-8,58,57,101,97,131,140,133,131,
124,114,150,152,145,138,151,139,135,114,103,97,99,98,148,147,168,187,167,181,
261,257,235,202,202,202,227,185,360,330,241,364,304,158,549,551,479,472,666,
636,612,431,433,383,393,392,571,579,818,810,708,641]} 1. e4 {[%emt 0:00:03]} d6
{[%emt 0:01:17]} 2. d4 {[%emt 0:00:06]} g6 {[%emt 0:00:14]} 3. Be3 {[%emt 0:00:
00]} Bg7 {[%emt 0:00:35]} 4. Nc3 {[%emt 0:00:44]} Nf6 {[%emt 0:01:19]} 5. f3 {
[%emt 0:00:14]} Nc6 {[%emt 0:01:14]} 6. Nge2 {[%emt 0:00:44]} e5 {[%emt 0:00:
00]} 7. Qd2 {[%emt 0:01:01]} O-O {[%emt 0:01:47]} 8. d5 {[%emt 0:00:36]} Ne7 {
[%emt 0:02:08]} 9. O-O-O {[%emt 0:00:19]} a6 {[%emt 0:00:41] B07: Pirc Defence:
Miscellaneous Systems.} 10. Bh6 {[%emt 0:02:25]} b5 {[%emt 0:01:59]} 11. h4 {
[%emt 0:01:47][%cal Yh4h5] [#]} Kh8 $146 {[%emt 0:02:24]} (11... Bxh6 $11 {
keeps the balance.} 12. Qxh6 b4) ({Predecessor:} 11... Bxh6 12. Qxh6 Kh8 13.
Qd2 h5 14. g4 Kg7 15. g5 Nd7 16. f4 exf4 17. Nxf4 Ne5 {1-0 (25) Emms,J (2532)
-Pein,M (2424) Birmingham 2001}) 12. h5 {[%emt 0:01:55]} (12. Bxg7+ $16 Kxg7
13. h5) 12... Bxh6 $11 {[%emt 0:01:04]} 13. Qxh6 {[%emt 0:00:05]} Neg8 {
[%emt 0:00:14]} 14. Qd2 {[%emt 0:00:32]} b4 {[%emt 0:02:39]} (14... Nxh5 $11
15. g4 Nhf6) 15. Nb1 $14 {[%emt 0:01:04] hxg6 is the strong threat.} Nxh5 {
[%emt 0:01:09]} 16. g4 {[%emt 0:01:11]} Nf4 {[%emt 0:02:55]} 17. Nxf4 {[%emt 0:
00:00]} exf4 {[%emt 0:04:59]} 18. Qh2 {[%emt 0:00:48][%csl Gh1][%cal Rh2h7] [#]
White is more active.} h6 {[%emt 0:00:32]} 19. Qxf4 {[%emt 0:00:05]} Qf6 {
[%emt 0:00:59]} 20. Qxf6+ {[%emt 0:05:28]} Nxf6 {[%emt 0:00:48]} 21. Rxh6+ {
[%emt 0:00:04]} Kg7 {[%emt 0:00:59]} 22. Rh1 {[%emt 0:01:09]} Bd7 {[%emt 0:00:
00]} 23. c4 {[%emt 0:06:54]} a5 {[%emt 0:03:58]} 24. c5 {[%emt 0:03:21]} dxc5 {
[%emt 0:00:56]} 25. Nd2 {[%emt 0:07:32]} c6 {[%emt 0:03:37]} (25... a4 $142)
26. d6 $16 {[%emt 0:01:23]} a4 {[%emt 0:03:19]} 27. e5 {[%emt 0:05:54]} Nd5 {
[%emt 0:06:31]} 28. Ne4 {[%emt 0:02:09]} Be6 {[%emt 0:03:26]} (28... Rfe8 {
keeps fighting.}) 29. Rd2 $18 {[%emt 0:04:57] [#] Threatens to win with Rdh2.}
({Weaker is} 29. Nxc5 Ra5 30. Nxe6+ fxe6 $16) 29... Rh8 {[%emt 0:06:20]} 30.
Rdh2 {[%emt 0:00:44]} Rxh2 {[%emt 0:02:32]} 31. Rxh2 {[%emt 0:02:00]} a3 {
[%emt 0:03:22]} 32. Bc4 {[%emt 0:02:48]} axb2+ $2 {[%emt 0:03:02]} (32... Nf4 {
is a better defense.} 33. Bxe6 Nxe6) 33. Kxb2 {[%emt 0:00:12]} Nf4 {[%emt 0:00:
00]} 34. Bxe6 {[%emt 0:20:53]} Nxe6 {[%emt 0:07:16] Endgame KRN-KRN} 35. Rc2 {
[%emt 0:04:22]} (35. f4 $18) 35... Ra3 $2 {[%emt 0:05:58] This move loses the
game for Black.} (35... Ra5 $16 {is tougher.} 36. d7 Kf8) 36. Nxc5 {[%emt 0:01:
59]} Nd8 {[%emt 0:02:22]} 37. Nb3 {[%emt 0:11:37]} g5 {[%emt 0:00:00]} (37...
Ra6 $142 38. f4 Kf8) 38. Rc4 {[%emt 0:00:55]} Ra4 {[%emt 0:01:34]} 39. Nc5 {
[%emt 0:01:55]} Ra5 {[%emt 0:01:48]} 40. Rc2 {[%emt 0:00:43]} Ra3 {[%emt 0:00:
33]} 41. Nb3 {[%emt 0:30:52]} Kg6 {[%emt 0:30:41]} (41... Ra8 {was necessary.}
42. Nd4 Ra5 43. Nxc6 Nxc6) 42. Rc4 {[%emt 0:00:42] White is clearly winning.}
Ra4 {[%emt 0:01:27]} 43. Nd4 {[%emt 0:00:20]} Ra5 {[%emt 0:00:00]} 44. Nxc6 {
[%emt 0:00:12] Weighted Error Value: White=0.19 (very precise) /Black=0.57} 1-0

[Event "44th Chess Olympiad Open 2022"]
[Site "Chennai"]
[Date "2022.08.01"]
[Round "4.48"]
[White "Mendoza, Rodrigo"]
[Black "Fomevor, Cephas Clinton"]
[Result "1-0"]
[WhiteElo "2215"]
[BlackElo "1830"]
[Annotator "NA RC"]
[PlyCount "50"]
[EventDate "2022.??.??"]
[TimeControl "60"]

1. c4 {[%emt 0:00:02]} c6 {[%emt 0:00:50]} 2. Nf3 {[%emt 0:00:07]} Nf6 {
[%emt 0:00:08]} 3. b3 {[%emt 0:00:06]} d5 {[%emt 0:00:14]} 4. Bb2 {[%emt 0:00:
00]} Bf5 {[%emt 0:00:34]} 5. e3 {[%emt 0:00:42]} e6 {[%emt 0:01:46]} 6. Nh4 {
[%emt 0:00:14]} Bg4 {[%emt 0:02:50]} 7. Qc2 {[%emt 0:00:07]} Be7 {[%emt 0:00:
00]} 8. h3 {[%emt 0:01:00]} Bh5 {[%emt 0:09:02]} 9. g4 {[%emt 0:00:39]} Ne4 {
[%emt 0:10:41]} 10. Nf3 {[%emt 0:04:32]} Bg6 {[%emt 0:00:59]} 11. d3 {[%emt 0:
00:00]} Nd6 {[%emt 0:07:51]} 12. Ne5 {[%emt 0:00:42]} Bf6 {[%emt 0:02:57]} 13.
Nd2 {[%emt 0:01:44]} Nd7 {[%emt 0:02:32]} 14. Nxg6 {[%emt 0:04:28]} hxg6 {
[%emt 0:00:02]} 15. d4 {[%emt 0:00:41]} e5 {[%emt 0:14:19]} 16. Bg2 {[%emt 0:
00:00]} e4 {[%emt 0:05:56]} 17. Rc1 {[%emt 0:03:55]} Nf8 {[%emt 0:04:54]} 18.
cxd5 {[%emt 0:07:13]} cxd5 {[%emt 0:00:11]} 19. Qc5 {[%emt 0:00:06]} Nc8 {
[%emt 0:03:09]} 20. f3 {[%emt 0:02:15]} exf3 {[%emt 0:09:34]} 21. Bxf3 {
[%emt 0:04:02]} Nb6 {[%emt 0:03:09]} 22. a4 {[%emt 0:04:04]} Ne6 {[%emt 0:00:
00]} 23. Qb5+ {[%emt 0:00:18]} Kf8 {[%emt 0:01:21]} 24. a5 {[%emt 0:00:36]} Nc7
{[%emt 0:02:46]} 25. Qc5+ {[%emt 0:04:08]} Ke8 {[%emt 0:01:22]} 1-0